{"text_format":"1","workbook":"xlsx","n_sheets":3,"sheets":["Uitleg","Blad1","Blad2"],"not_rendered":{"charts":0,"images":0,"macros":1,"external_links":0,"defined_names":0,"comments":0,"pivot_tables":0},"unopened":[],"bounds":{"document_bytes":16777216,"sheet_cells":100000,"rows_first":2000,"rows_last":500,"rows_between":2000,"halvings":0,"cell_chars":16384,"cell_head_chars":4096},"cells_cut":0,"cells_raw":0,"read":"whole","date_system":"1900"}

{"sheet":"Uitleg","index":0,"n_rows":10,"n_cols":1,"rows_kept":10,"cut":false,"hidden":false,"merged":[]}
["Ga naar Blad2."]
["Typ het woord in de cel E1.(zie C1) eerste letter Hoofdletter."]
["Ga nu naar Blad1."]
["In kolom B staat de beginletter."]
["Typ een woord in de cel A1"]
["Groen geeft aan juiste plaats."]
["Oranje geeft aan verkeerde plaats."]
["Letter komt voor in woord."]
["5 kansen."]
["Gebruik ook de knop F9 voor Blad2"]

{"sheet":"Blad1","index":1,"n_rows":5,"n_cols":12,"rows_kept":5,"cut":false,"hidden":false,"merged":[]}
[null,{"$f":"$H$1","v":"L"},{"$f":"LOWER( MID( $A1, COLUMN(B1), 1 ))","v":""},"","","",null,{"$f":"LEFT(Blad2!E1)","v":"L"},{"$f":"MID(Blad2!E1,2,1)","v":"u"},{"$f":"MID(Blad2!E1,3,1)","v":"n"},{"$f":"MID(Blad2!E1,4,1)","v":"c"},{"$f":"RIGHT(Blad2!E1)","v":"h"}]
[null,{"$f":"$H$1","v":"L"},"",{"$f":"LOWER( MID( $A2, COLUMN(C2), 1 ))","v":""},"","",null,"Hierboven staan letters"]
[null,"L","","","",""]
[null,"L","","","",""]
[null,"L","","","",""]

{"sheet":"Blad2","index":2,"n_rows":495,"n_cols":5,"rows_kept":495,"cut":false,"hidden":false,"merged":[]}
["aarde",null,{"$f":"INDEX($A:$A,RANDBETWEEN(1,COUNTA($A:$A)),1)","v":"hagel"},null,"Lunch"]
["actie"]
["aders",null,null,null,"eerste letter Hoofdletter"]
["adres"]
["aftel"]
["afwas"]
["alarm"]
["aldus"]
["apart"]
["appel"]
["armen"]
["atoom"]
["avond"]
["baard"]
["baden"]
["baken"]
["balen"]
["banen"]
["baren"]
["basis"]
["bazen"]
["bazin"]
["bedel"]
["beden"]
["beeld"]
["beken"]
["beker"]
["beleg"]
["benen"]
["beren"]
["beten"]
["beter"]
["bezem"]
["bezig"]
["bidet"]
["blauw"]
["blind"]
["bloed"]
["bloem"]
["blond"]
["bomen"]
["boren"]
["boten"]
["boter"]
["boven"]
["boxen"]
["brand"]
["breed"]
["breng"]
["breuk"]
["brief"]
["broek"]
["broer"]
["brood"]
["buren"]
["cacao"]
["cadet"]
["cavia"]
["ceder"]
["cello"]
["china"]
["cloud"]
["clown"]
["combi"]
["conus"]
["creme"]
["dadel"]
["daden"]
["dader"]
["dagen"]
["dalen"]
["daler"]
["dames"]
["daten"]
["datum"]
["deden"]
["degen"]
["deken"]
["delen"]
["deler"]
["derde"]
["deren"]
["dient"]
["diner"]
["disco"]
["doorn"]
["dozen"]
["draad"]
["draaf"]
["draai"]
["drank"]
["dreun"]
["drone"]
["droog"]
["droom"]
["drugs"]
["druif"]
["druil"]
["druis"]
["duits"]
["duren"]
["duwen"]
["dwaal"]
["dwaas"]
["dwars"]
["dweil"]
["dwerg"]
["dwing"]
["effen"]
["egaal"]
["eigen"]
["elder"]
["elven"]
["email"]
["engel"]
["enger"]
["enkel"]
["falen"]
["fauna"]
["feeen"]
["feest"]
["fiets"]
["files"]
["films"]
["flora"]
["forel"]
["forum"]
["freak"]
["friet"]
["fruit"]
["fusie"]
["games"]
["garen"]
["gaven"]
["gebak"]
["geeuw"]
["geluk"]
["genre"]
["getal"]
["geven"]
["gewei"]
["glans"]
["graaf"]
["graag"]
["graai"]
["graal"]
["grens"]
["groef"]
["groen"]
["groet"]
["grond"]
["grote"]
["hagel"]
["haken"]
["halen"]
["hamer"]
["harde"]
["haren"]
["heden"]
["helen"]
["heler"]
["hemel"]
["heren"]
["hobby"]
["hoger"]
["hoofd"]
["horen"]
["hotel"]
["huren"]
["icoon"]
["ieder"]
["immer"]
["index"]
["inlog"]
["innig"]
["inzet"]
["jabot"]
["jacht"]
["jaden"]
["jagen"]
["jager"]
["japon"]
["jaren"]
["jarig"]
["jawel"]
["jeans"]
["jemig"]
["jeugd"]
["jicht"]
["joint"]
["jonas"]
["joule"]
["jovel"]
["kaars"]
["kaart"]
["kabel"]
["kader"]
["kamer"]
["kater"]
["kegel"]
["kerel"]
["keren"]
["kerst"]
["klein"]
["kleur"]
["klimt"]
["klink"]
["klopt"]
["koken"]
["koker"]
["kolen"]
["kopje"]
["korst"]
["koude"]
["kraal"]
["kraan"]
["krans"]
["krant"]
["kreet"]
["krent"]
["kroon"]
["kruid"]
["kruis"]
["kubus"]
["kudde"]
["kunst"]
["laden"]
["lader"]
["lagen"]
["lager"]
["laser"]
["laten"]
["leden"]
["leder"]
["leeuw"]
["legen"]
["leger"]
["lenen"]
["lente"]
["lepel"]
["leven"]
["lever"]
["lezen"]
["lezer"]
["licht"]
["lijst"]
["lingo"]
["links"]
["lopen"]
["loper"]
["lucht"]
["luier"]
["lunch"]
["maagd"]
["maand"]
["macht"]
["maden"]
["magen"]
["mager"]
["maken"]
["malen"]
["manen"]
["maren"]
["markt"]
["maten"]
["mazen"]
["meden"]
["media"]
["meest"]
["meeuw"]
["meren"]
["meter"]
["model"]
["molen"]
["motor"]
["naden"]
["namen"]
["neder"]
["negen"]
["nemen"]
["neven"]
["nieuw"]
["nodig"]
["noord"]
["oases"]
["ogend"]
["omzet"]
["onder"]
["onwel"]
["ophef"]
["oppas"]
["optel"]
["optie"]
["orden"]
["ouder"]
["ovaal"]
["ovale"]
["paard"]
["paars"]
["paden"]
["palen"]
["panda"]
["pasta"]
["patat"]
["pater"]
["pauze"]
["pegel"]
["penis"]
["piano"]
["pixel"]
["pizza"]
["plein"]
["plint"]
["pluto"]
["polen"]
["polis"]
["poten"]
["preek"]
["prijs"]
["prima"]
["prins"]
["proef"]
["puber"]
["quant"]
["quark"]
["queue"]
["quilt"]
["quota"]
["quote"]
["racen"]
["races"]
["radar"]
["raden"]
["radio"]
["ramen"]
["razen"]
["reden"]
["regel"]
["regen"]
["regio"]
["reken"]
["rente"]
["riool"]
["robot"]
["roede"]
["roken"]
["rokje"]
["roman"]
["rugby"]
["ruist"]
["ruzie"]
["samen"]
["scene"]
["schap"]
["schat"]
["schep"]
["sedan"]
["serie"]
["sfeer"]
["shirt"]
["shows"]
["sites"]
["sjaal"]
["skier"]
["sluis"]
["smaak"]
["smeed"]
["smeer"]
["smelt"]
["snaar"]
["sneer"]
["snoep"]
["sorry"]
["spalk"]
["speel"]
["speer"]
["speld"]
["spijs"]
["sport"]
["spuit"]
["staal"]
["staan"]
["staat"]
["stand"]
["steeg"]
["steek"]
["steel"]
["steer"]
["steun"]
["stoel"]
["stoep"]
["stook"]
["storm"]
["strak"]
["super"]
["taart"]
["tabak"]
["taboe"]
["tafel"]
["taken"]
["talen"]
["tarwe"]
["teder"]
["tegel"]
["teken"]
["telen"]
["teler"]
["tenen"]
["teren"]
["terug"]
["thuis"]
["tiara"]
["titel"]
["toets"]
["trein"]
["treur"]
["trouw"]
["truck"]
["typen"]
["uiers"]
["uilig"]
["uiten"]
["uitje"]
["uiver"]
["ultra"]
["uniek"]
["uppie"]
["uraan"]
["vader"]
["vanaf"]
["varen"]
["vaten"]
["veder"]
["vegen"]
["veger"]
["veins"]
["velen"]
["veler"]
["veren"]
["vezel"]
["video"]
["vieze"]
["villa"]
["vlees"]
["vloer"]
["vogel"]
["vorst"]
["vraag"]
["vrede"]
["vries"]
["vroeg"]
["vrouw"]
["vuren"]
["wagen"]
["waren"]
["warme"]
["water"]
["wazig"]
["wegen"]
["weken"]
["wenst"]
["weren"]
["weten"]
["weven"]
["wezen"]
["wilde"]
["woest"]
["wonen"]
["woord"]
["wraak"]
["wrede"]
["wreed"]
["xenon"]
["yacht"]
["yucca"]
["zadel"]
["zaden"]
["zagen"]
["zaken"]
["zalig"]
["zeden"]
["zeeen"]
["zeker"]
["zenuw"]
["zesde"]
["zeven"]
["zever"]
["zicht"]
["zomer"]
["zwaar"]
["zware"]
["zwart"]
["zweef"]
["zweer"]
["zweet"]